fUST/lending_fUST_20240204
["ID","MTS","AMOUNT","RATE_DAILY","PERIOD"]
[313260938,1707050154359,-9000.0,0.00023782,2]
[313260939,1707050154379,-155.02170304,0.00023783,2]
[313260940,1707050154399,-966.00190129,0.00023783,2]
[313260941,1707050154419,-24900.0,0.00023784,2]
[313260942,1707050154440,-168.99206226,0.00024555,2]
[313260943,1707050154461,-7806.13796145,0.00024647,3]
[313260947,1707050224574,-3038.0,0.0002311,2]
[313260948,1707050264988,7567.09702074,0.00029,30]
[313260949,1707050294778,-166.666666,0.00023053,2]
[313260950,1707050294799,-20917.8332955,0.00023109,2]
[313260951,1707050294822,-16868.99800967,0.0002311,2]
[313260952,1707050294842,-215.50202883,0.0002311,2]
[313260957,1707050388562,-19124.88822616,0.00023107,2]
[313260958,1707050388586,-6000.0,0.00023108,2]
[313260959,1707050388608,-3493.57161214,0.00023109,2]
[313260960,1707050388629,-313.00418309,0.0002311,2]
[313260961,1707050388653,-3064.3736051,0.00023111,2]
[313260962,1707050388674,-11349.16237351,0.00023403,2]
[313260968,1707050490534,-5000.0,0.00023402,2]
[313260969,1707050490555,-313.00418309,0.00023403,2]
[313260970,1707050490576,-2492.99581691,0.00023403,2]
[313260973,1707050560897,-690.67625997,0.00023111,2]
[313260974,1707050560919,-313.00418309,0.00023403,2]
[313260975,1707050560940,-1462.31955694,0.00023403,2]
[313260979,1707050627945,-263.0,0.00023403,2]
[313260986,1707050760113,-380.00126131,0.00023402,2]
[313260987,1707050760134,-443.99873869,0.00023402,2]
[313260991,1707050920617,-2465.67574349,0.00023399,2]
[313260992,1707050920642,-62.62291493,0.00023403,2]
[313260993,1707050920667,-2605.0,0.00023535,2]
[313260994,1707050920692,-499.208819,0.00023537,2]
[313260995,1707050958145,-528.75685317,0.00024162,2]
[313260996,1707050958170,-3119.05429636,0.00024408,2]
[313260997,1707050958197,-167.67223168,0.00024555,2]
[313260998,1707050958221,-158.78242563,0.00024557,2]
[313260999,1707050958247,-500.0,0.00024646,2]
[313261000,1707050958274,-2308.22671574,0.00024647,3]
[313261068,1707051037812,-2605.0,0.00023536,2]
[313261069,1707051037822,-2318.63805172,0.00023537,2]
[313261070,1707051037922,-253.03416128,0.00023537,2]
[313261088,1707051040989,-14979.72979143,0.00023537,2]
[313261089,1707051041000,-2596.43931208,0.00024647,3]
[313261090,1707051041011,-326.44776465,0.00024647,3]
[313261091,1707051041025,-1006.77292327,0.00024647,3]
[313261092,1707051041034,-4880.24099577,0.00024647,3]
[313261103,1707051042719,-2197.97900423,0.00024647,3]
[313261104,1707051042728,-4387.02800599,0.00024647,3]
[313261105,1707051042774,-1491.09917477,0.00024647,3]
[313261134,1707051045919,-1.62397551,0.00024647,3]
[313261135,1707051046307,-4094.56602449,0.00024647,3]
[313261136,1707051046317,-2485.69581661,0.00024653,2]
[313261137,1707051046327,-1579.19499773,0.00024655,2]
[313261138,1707051046336,-621.91359189,0.00024655,2]
[313261139,1707051046346,-1011.22867727,0.00024655,2]
[313261140,1707051046356,-16.43265155,0.00024655,2]
[313261141,1707051046369,-2014.43657787,0.00024655,2]
[313261142,1707051046379,-14358.17371755,0.00024655,2]
[313261143,1707051046390,-1017.67059015,0.00024655,2]
[313261144,1707051046399,-323.81557453,0.00024655,2]
[313261145,1707051046409,-518.77986544,0.00024656,2]
[313261146,1707051046419,-3166.85694087,0.00024656,2]
[313261147,1707051046428,-500.0,0.00024657,2]
[313261148,1707051046436,-488.04280479,0.00024657,2]
[313261149,1707051046446,-1000.0,0.00024657,2]
[313261150,1707051046456,-500.0,0.00024657,2]
[313261151,1707051046466,-500.0,0.00024657,2]
[313261152,1707051046477,-465.02480177,0.00024657,2]
[313261153,1707051046488,-500.27504087,0.00024657,2]
[313261154,1707051046496,-500.0,0.00024657,2]
[313261155,1707051046505,-500.0,0.00024657,2]
[313261156,1707051046515,-500.0,0.00024657,2]
[313261157,1707051046527,-500.0,0.00024657,2]
[313261158,1707051046536,-187.22446457,0.00024657,2]
[313261170,1707051153496,-3398.0,0.00023111,2]
[313261171,1707051219824,-2605.0,0.0002311,2]
[313261172,1707051219847,-1602.0,0.00023111,2]
[313261173,1707051219868,-4580.75684191,0.00023111,2]
[313261174,1707051219888,-155.00465014,0.00023111,2]
[313261175,1707051219908,-5443.23850795,0.00023111,2]
[313261195,1707051877997,-155.0,0.00021826,2]
[313261197,1707052009630,-2605.0,0.00021824,2]
[313261198,1707052009652,-2465.67574349,0.00021825,2]
[313261199,1707052009673,-12.770851,0.00021826,2]
[313261200,1707052009694,-10259.55340551,0.00021826,2]
[313261203,1707052082827,-323.81557453,0.00021825,2]
[313261204,1707052082848,-56.18442547,0.00021826,2]
[313261237,1707052231865,-0.4636518,0.00021826,2]
[313261239,1707052231875,-166.54415307,0.00021838,2]
[313261242,1707052231887,-2605.0,0.00021925,2]
[313261243,1707052231896,-1017.67059015,0.00021925,2]
[313261245,1707052231907,-1115.0783916,0.00021926,2]
[313261247,1707052231918,-1582.87149968,0.00021926,2]
[313261249,1707052231927,-6219.58,0.00021927,3]
[313261251,1707052231937,-5182.98,0.00021927,3]
[313261253,1707052231946,-4319.15,0.00021927,3]
[313261255,1707052231955,-3599.29,0.00021927,3]
[313261257,1707052231964,-83879.34546947,0.00021937,2]
[313261259,1707052231974,-24900.0,0.00021938,2]
[313261261,1707052231984,-1907.45126131,0.00022101,2]
[313261263,1707052231994,-358.687147,0.00022106,2]
[313261264,1707052232003,-155.8961339,0.00023099,2]
[313261265,1707052232012,-358.56819931,0.00023099,2]
[313261267,1707052232021,-966.00190129,0.00023099,2]
[313261269,1707052232030,-231.14973041,0.00023099,2]
[313261270,1707052232039,-261.56000256,0.00023099,2]
[313261272,1707052232048,-1305.33185237,0.00023099,2]
[313261273,1707052232058,-245.52238542,0.00023099,2]
[313261274,1707052232068,-155.02170304,0.000231,2]
[313261275,1707052232077,-272.72631424,0.00023109,2]
[313261276,1707052232086,-191.76182091,0.00023111,2]
[313261277,1707052232094,-20539.8532855,0.00023111,2]
[313261278,1707052232104,-11847.03460909,0.00023111,2]
[313261279,1707052232113,-313.00418309,0.00023111,2]
[313261280,1707052232123,-1829.60430493,0.00024647,2]
[313261281,1707052232132,-2088.61407986,0.00024647,2]
[313261282,1707052232141,-621.90621018,0.00024647,2]
[313261283,1707052232150,-300.0,0.00024647,2]
[313261284,1707052232159,-264.14942563,0.00024655,2]
[313261285,1707052232169,-621.91359189,0.00024655,2]
[313261286,1707052232179,-1011.22867727,0.00024655,2]
[313261287,1707052232190,-500.0,0.00024656,2]
[313261288,1707052232201,-3492.24028975,0.00024656,2]
[313261289,1707052232212,-251.98185569,0.00024657,2]
[313261290,1707052232221,-618.54349295,0.00024657,2]
[313261291,1707052232230,-500.0,0.00024657,2]
[313261292,1707052232240,-500.0,0.00024657,2]
[313261293,1707052232250,-500.0,0.00024657,2]
[313261294,1707052232260,-500.0,0.00024657,2]
[313261295,1707052232269,-500.0,0.00024657,2]
[313261296,1707052232278,-500.0,0.00024657,2]
[313261297,1707052232288,-500.0,0.00024657,2]
[313261298,1707052232300,-500.0,0.00024657,2]
[313261299,1707052232311,-500.0,0.00024657,2]
[313261300,1707052232320,-500.0,0.00024657,2]
[313261301,1707052232330,-500.0,0.00024657,2]
[313261302,1707052232341,-718.07,0.00024657,2]
[313261303,1707052232351,-271.98093065,0.00024657,2]
[313261331,1707052237989,-752.57897346,0.00024657,2]
[313261332,1707052237999,-500.0,0.00024657,2]
[313261333,1707052238008,-500.0,0.00024657,2]
[313261334,1707052238017,-273.04314162,0.00024657,2]
[313261335,1707052238026,-500.0,0.00024657,2]
[313261336,1707052238035,-500.0,0.00024657,2]
[313261337,1707052238044,-500.0,0.00024657,2]
[313261338,1707052238053,-500.0,0.00024657,2]
[313261339,1707052238062,-500.0,0.00024657,2]
[313261340,1707052238071,-500.0,0.00024657,2]
[313261341,1707052238080,-407.51852402,0.00024657,2]
[313261342,1707052238092,-92.48147598,0.00024657,2]
[313261343,1707052238101,-500.0,0.00024657,2]
[313261344,1707052238110,-453.55708389,0.00024657,2]
[313261345,1707052238120,-500.0,0.00024657,2]
[313261346,1707052238129,-500.0,0.00024657,2]
[313261347,1707052238140,-500.0,0.00024657,2]
[313261348,1707052238151,-444.30257714,0.00024657,2]
[313261349,1707052238160,-500.0,0.00024657,2]
[313261350,1707052238169,-500.0,0.00024657,2]
[313261351,1707052238178,-500.0,0.00024657,2]
[313261352,1707052238187,-500.0,0.00024657,2]
[313261353,1707052238196,-194.7869234,0.00024657,2]
[313261354,1707052238205,-579.52929144,0.00024657,2]
[313261355,1707052238215,-500.0,0.00024657,2]
[313261356,1707052238226,-500.0,0.00024657,2]
[313261357,1707052238238,-500.0,0.00024657,2]
[313261358,1707052238248,-500.0,0.00024657,2]
[313261359,1707052238258,-332.15925439,0.00024657,2]
[313261360,1707052238268,-200.14864352,0.00024657,2]
[313261361,1707052238277,-500.0,0.00024657,2]
[313261362,1707052238286,-500.0,0.00024657,2]
[313261363,1707052238296,-500.0,0.00024657,2]
[313261364,1707052238306,-500.0,0.00024657,2]
[313261365,1707052238316,-500.0,0.00024657,2]
[313261366,1707052238326,-500.0,0.00024657,2]
[313261367,1707052238337,-500.0,0.00024657,2]
[313261368,1707052238348,-504.04931601,0.00024657,2]
[313261369,1707052238358,-500.0,0.00024657,2]
[313261370,1707052238368,-500.0,0.00024657,2]
[313261371,1707052238377,-500.0,0.00024657,2]
[313261372,1707052238386,-500.0,0.00024657,2]
[313261373,1707052238396,-636.38946417,0.00024657,2]
[313261374,1707052238406,-500.0,0.00024657,2]
[313261375,1707052238415,-500.0,0.00024657,2]
[313261376,1707052238424,-500.0,0.00024657,2]
[313261377,1707052238433,-500.0,0.00024657,2]
[313261378,1707052238442,-500.0,0.00024657,2]
[313261379,1707052238450,-500.0,0.00024657,2]
[313261380,1707052238460,-500.0,0.00024657,2]
[313261381,1707052238470,-520.34658269,0.00024657,2]
[313261382,1707052238480,-500.0,0.00024657,2]
[313261383,1707052238490,-500.0,0.00024657,2]
[313261384,1707052238499,-500.0,0.00024657,2]
[313261385,1707052238508,-500.0,0.00024657,2]
[313261386,1707052238517,-500.0,0.00024657,2]
[313261387,1707052238526,-500.0,0.00024657,2]
[313261388,1707052238536,-500.0,0.00024657,2]
[313261389,1707052238545,-500.0,0.00024657,2]
[313261390,1707052238555,-500.0,0.00024657,2]
[313261391,1707052238566,-500.0,0.00024657,2]
[313261392,1707052238576,-500.0,0.00024657,2]
[313261393,1707052238586,-500.0,0.00024657,2]
[313261394,1707052238597,-500.0,0.00024657,2]
[313261395,1707052238608,-500.0,0.00024657,2]
[313261396,1707052238620,-500.0,0.00024657,2]
[313261397,1707052238629,-500.0,0.00024657,2]
[313261398,1707052238640,-500.0,0.00024657,2]
[313261399,1707052238649,-500.0,0.00024657,2]
[313261400,1707052238660,-500.0,0.00024657,2]
[313261401,1707052238669,-500.0,0.00024657,2]
[313261402,1707052238679,-500.0,0.00024657,2]
[313261403,1707052238689,-500.0,0.00024657,2]
[313261404,1707052238699,-500.0,0.00024657,2]
[313261405,1707052238709,-500.0,0.00024657,2]
[313261406,1707052238719,-500.0,0.00024657,2]
[313261407,1707052238728,-500.0,0.00024657,2]
[313261408,1707052238738,-500.0,0.00024657,2]
[313261409,1707052238747,-500.0,0.00024657,2]
[313261410,1707052238756,-500.0,0.00024657,2]
[313261411,1707052238765,-500.0,0.00024657,2]
[313261412,1707052238774,-347.85204275,0.00024657,2]
[313261413,1707052238783,-500.0,0.00024657,2]
[313261414,1707052238793,-500.32,0.00024657,2]
[313261415,1707052238802,-500.0,0.00024657,2]
[313261416,1707052238811,-151.0,0.00024657,2]
[313261417,1707052238819,-500.0,0.00024657,2]
[313261418,1707052238829,-500.0,0.00024657,2]
[313261419,1707052238838,-500.0,0.00024657,2]
[313261420,1707052238850,-246.92470384,0.00024657,2]
[313261421,1707052238859,-500.0,0.00024657,2]
[313261422,1707052238869,-500.0,0.00024657,2]
[313261423,1707052238878,-500.0,0.00024657,2]
[313261424,1707052238888,-500.0,0.00024657,2]
[313261425,1707052238897,-500.0,0.00024657,2]
[313261426,1707052238907,-500.0,0.00024657,2]
[313261427,1707052238916,-624.87350951,0.00024657,2]
[313261428,1707052238926,-500.0,0.00024657,2]
[313261429,1707052238935,-500.0,0.00024657,2]
[313261430,1707052238944,-500.0,0.00024657,2]
[313261431,1707052238953,-2173.82,0.00024657,2]
[313261432,1707052238963,-500.0,0.00024657,2]
[313261433,1707052238972,-500.0,0.00024657,2]
[313261434,1707052238982,-500.0,0.00024657,2]
[313261435,1707052238991,-500.0,0.00024657,2]
[313261436,1707052239000,-500.0,0.00024657,2]
[313261437,1707052239010,-500.0,0.00024657,2]
[313261438,1707052239018,-500.0,0.00024657,2]
[313261439,1707052239028,-500.0,0.00024657,2]
[313261440,1707052239037,-1518.82,0.00024657,2]
[313261441,1707052239046,-610.81401891,0.00024657,2]
[313261442,1707052239055,-1000.0,0.00024657,2]
[313261443,1707052239064,-500.0,0.00024657,2]
[313261444,1707052239073,-501.01811761,0.00024657,2]
[313261445,1707052239082,-500.0,0.00024657,2]
[313261446,1707052239091,-500.0,0.00024657,2]
[313261447,1707052239100,-500.0,0.00024657,2]
[313261448,1707052239109,-2351.99,0.00024657,2]
[313261449,1707052239118,-500.0,0.00024657,2]
[313261450,1707052239127,-500.0,0.00024657,2]
[313261451,1707052239136,-500.0,0.00024657,2]
[313261452,1707052239145,-500.0,0.00024657,2]
[313261453,1707052239154,-826.04,0.00024657,2]
[313261454,1707052239163,-500.0,0.00024657,2]
[313261455,1707052239172,-500.0,0.00024657,2]
[313261456,1707052239181,-500.0,0.00024657,2]
[313261457,1707052239190,-500.0,0.00024657,2]
[313261458,1707052239200,-401.89506063,0.00024657,2]
[313261459,1707052239209,-277.16826861,0.00024657,2]
[313261460,1707052239218,-500.0,0.00024657,2]
[313261461,1707052239227,-510.61055065,0.00024657,2]
[313261462,1707052239236,-530.27,0.00024657,2]
[313261463,1707052239245,-863.89,0.00024657,2]
[313261464,1707052239254,-500.0,0.00024657,2]
[313261465,1707052239263,-527.48219825,0.00024657,2]
[313261466,1707052239272,-517.59546977,0.00024657,2]
[313261467,1707052239281,-500.0,0.00024657,2]
[313261468,1707052239290,-500.0,0.00024657,2]
[313261469,1707052239299,-633.75839501,0.00024657,2]
[313261470,1707052239308,-500.0,0.00024657,2]
[313261471,1707052239317,-528.51258249,0.00024657,2]
[313261472,1707052239326,-500.0,0.00024657,2]
[313261473,1707052239335,-500.0,0.00024657,2]
[313261474,1707052239344,-308.2147229,0.00024657,2]
[313261475,1707052239353,-500.0,0.00024657,2]
[313261476,1707052239362,-500.0,0.00024657,2]
[313261477,1707052239371,-500.0,0.00024657,2]
[313261478,1707052239380,-500.0,0.00024657,2]
[313261479,1707052239389,-500.0,0.00024657,2]
[313261480,1707052239398,-500.0,0.00024657,2]
[313261481,1707052239407,-500.0,0.00024657,2]
[313261482,1707052239416,-500.0,0.00024657,2]
[313261483,1707052239425,-500.0,0.00024657,2]
[313261484,1707052239434,-6466.69,0.00024657,2]
[313261485,1707052239442,-1835.67,0.00024657,2]
[313261486,1707052239452,-500.0,0.00024657,2]
[313261487,1707052239463,-2023.16,0.00024657,2]
[313261488,1707052239473,-193.41239296,0.00024657,2]
[313261489,1707052239483,-500.0,0.00024657,2]
[313261490,1707052239492,-500.0,0.00024657,2]
[313261491,1707052239501,-500.0,0.00024657,2]
[313261492,1707052239510,-568.9,0.00024657,2]
[313261493,1707052239519,-500.0,0.00024657,2]
[313261494,1707052239528,-333.97015587,0.00024657,2]
[313261495,1707052239538,-253.12630174,0.00024657,2]
[313261496,1707052239549,-500.0,0.00024657,2]
[313261497,1707052239560,-500.0,0.00024657,2]
[313261498,1707052239570,-500.0,0.00024657,2]
[313261499,1707052239579,-3320.68,0.00024657,2]
[313261500,1707052239588,-500.0,0.00024657,2]
[313261501,1707052239597,-500.0,0.00024657,2]
[313261502,1707052239606,-500.0,0.00024657,2]
[313261503,1707052239696,-500.0,0.00024657,2]
[313261504,1707052239706,-500.0,0.00024657,2]
[313261505,1707052239715,-500.0,0.00024788,2]
[313261506,1707052239724,-331.456786,0.00024789,2]
[313261507,1707052239734,-331.456786,0.00024789,2]
[313261508,1707052239743,-151.0,0.00024789,2]
[313261509,1707052239752,-500.0,0.00024789,2]
[313261510,1707052239761,-500.0,0.00024789,2]
[313261511,1707052239771,-500.0,0.00024789,2]
[313261512,1707052239780,-500.0,0.00024789,2]
[313261513,1707052239790,-500.0,0.00024789,2]
[313261514,1707052239800,-500.0,0.00024789,2]
[313261515,1707052239809,-476.56287868,0.00024789,2]
[313261516,1707052239818,-500.0,0.00024789,2]
[313261517,1707052239828,-500.0,0.00024789,2]
[313261518,1707052239841,-500.0,0.00024789,2]
[313261519,1707052239852,-500.0,0.00024789,2]
[313261520,1707052239861,-500.0,0.00024789,2]
[313261521,1707052239871,-554.07098427,0.00024789,2]
[313261522,1707052239881,-500.0,0.00024789,2]
[313261523,1707052239891,-528.95021164,0.00024789,2]
[313261524,1707052239901,-500.0,0.00024789,2]
[313261525,1707052239911,-500.0,0.00024789,2]
[313261526,1707052239922,-500.0,0.00024789,2]
[313261527,1707052239931,-500.0,0.00024789,2]
[313261528,1707052239940,-500.0,0.00024789,2]
[313261529,1707052239949,-342.33357823,0.00024789,2]
[313261530,1707052239958,-500.0,0.00024789,2]
[313261531,1707052239968,-500.0,0.00024789,2]
[313261532,1707052239977,-500.0,0.00024789,2]
[313261534,1707052239986,-500.0,0.00024789,2]
[313261535,1707052239994,-500.0,0.00024789,2]
[313261537,1707052240004,-500.0,0.00024789,2]
[313261539,1707052240013,-500.0,0.00024789,2]
[313261540,1707052240023,-500.0,0.00024789,2]
[313261541,1707052240032,-500.0,0.00024789,2]
[313261542,1707052240041,-500.0,0.00024789,2]
[313261543,1707052240050,-500.0,0.00024789,2]
[313261544,1707052240059,-500.0,0.00024789,2]
[313261545,1707052240068,-500.0,0.00024789,2]
[313261546,1707052240077,-500.0,0.00024789,2]
[313261547,1707052240087,-500.0,0.00024789,2]
[313261548,1707052240096,-500.0,0.00024789,2]
[313261549,1707052240105,-500.0,0.00024789,2]
[313261550,1707052240114,-500.0,0.00024789,2]
[313261551,1707052240123,-500.0,0.00024789,2]
[313261552,1707052240132,-500.0,0.00024789,2]
[313261553,1707052240141,-500.0,0.00024789,2]
[313261554,1707052240150,-500.0,0.00024789,2]
[313261555,1707052240160,-500.0,0.00024789,2]
[313261556,1707052240169,-500.0,0.00024789,2]
[313261557,1707052240179,-500.0,0.00024789,2]
[313261558,1707052240190,-500.0,0.00024789,2]
[313261559,1707052240201,-500.0,0.00024789,2]
[313261560,1707052240211,-500.0,0.00024789,2]
[313261561,1707052240220,-500.0,0.00024789,2]
[313261562,1707052240230,-500.0,0.00024789,2]
[313261563,1707052240239,-500.0,0.00024789,2]
[313261564,1707052240250,-500.0,0.00024789,2]
[313261565,1707052240261,-500.0,0.00024789,2]
[313261566,1707052240271,-500.0,0.00024789,2]
[313261567,1707052240281,-500.0,0.00024789,2]
[313261568,1707052240291,-500.0,0.00024789,2]
[313261569,1707052240300,-500.0,0.00024789,2]
[313261570,1707052240309,-500.0,0.00024789,2]
[313261571,1707052240318,-151.0,0.0002479,2]
[313261572,1707052240327,-151.0,0.0002479,2]
[313261573,1707052240336,-151.0,0.0002479,2]
[313261574,1707052240345,-331.456786,0.0002479,2]
[313261575,1707052240355,-331.456786,0.0002479,2]
[313261576,1707052240366,-151.0,0.0002479,2]
[313261577,1707052240377,-219.7107,0.0002479,2]
[313261578,1707052240387,-292.098276,0.0002479,2]
[313261579,1707052240396,-292.098276,0.0002479,2]
[313261580,1707052240405,-17853.34430212,0.0002479,2]
[313261582,1707052241039,-500.0,0.00024657,2]
[313261583,1707052241048,-1470.35490155,0.0002479,2]
[313261584,1707052241060,-10996.77372916,0.0002479,2]
[313261585,1707052241071,-7857.45509845,0.0002479,2]
[313261586,1707052241082,-14548.55820207,0.0002479,2]
[313261587,1707052241094,-4661.6767148,0.0002479,2]
[313261601,1707052242944,-2999.41,0.0002478,3]
[313261602,1707052242954,-9930.81056228,0.0002479,2]
[313261603,1707052242999,-3017.52261407,0.0002479,2]
[313261604,1707052243010,-5736.90514816,0.0002479,2]
[313261618,1707052246077,-0.32242013,0.00024789,2]
[313261620,1707052246090,-820.39758811,0.00024789,2]
[313261621,1707052246100,-3710.58343506,0.0002479,2]
[313261623,1707052246111,-841.1231325,0.0002479,2]
[313261638,1707052311904,506.75,0.00029,30]
[313261654,1707052529669,-523.28534542,0.00023782,2]
[313261655,1707052529691,-2605.0,0.00023783,2]
[313261656,1707052529712,-179.343573,0.00023787,2]
[313261657,1707052529734,-166.54415307,0.00024557,2]
[313261658,1707052529755,-500.0,0.00024657,2]
[313261659,1707052529777,-500.0,0.00024657,2]
[313261660,1707052529802,-500.0,0.00024657,2]
[313261661,1707052529824,-500.0,0.00024657,2]
[313261662,1707052529845,-500.0,0.00024657,2]
[313261663,1707052529866,-312.77553543,0.00024657,2]
[313261664,1707052529887,-552.27063157,0.00024657,2]
[313261665,1707052529909,-500.0,0.00024657,2]
[313261666,1707052529931,-500.0,0.00024657,2]
[313261667,1707052529954,-500.0,0.00024657,2]
[313261668,1707052529975,-500.0,0.00024657,2]
[313261669,1707052529996,-506.86916246,0.00024657,2]
[313261670,1707052530017,-500.0,0.00024657,2]
[313261671,1707052530039,-500.0,0.00024657,2]
[313261672,1707052530058,-688.15,0.00024657,2]
[313261673,1707052530079,-500.0,0.00024657,2]
[313261674,1707052530099,-500.0,0.00024657,2]
[313261675,1707052530121,-2253.99,0.00024657,2]
[313261676,1707052530141,-430.77159905,0.00024657,2]
[313261745,1707053438202,-322.14005268,0.00022407,2]
[313261748,1707053438212,-931.35876437,0.00022408,2]
[313261750,1707053438224,-1673.64123563,0.00022408,2]
[313261752,1707053438234,-155.00310006,0.00022408,2]
[313261754,1707053438245,-1081.59388897,0.00022408,2]
[313261811,1707053443132,-651.59002088,0.00022406,2]
[313261812,1707053443141,-1245.08019096,0.00022406,2]
[313261813,1707053443151,-1219.89921923,0.00022408,2]
[313261814,1707053443186,-329.47296623,0.00022408,2]
[313261820,1707053446420,-0.3812739,0.00022408,2]
[313261821,1707053446432,-490.16024973,0.00022408,2]
[313261828,1707053578082,-2043.58209268,0.0002016,2]
[313261829,1707053578104,-1269.76151482,0.00020161,2]
[313261830,1707053578126,-523.28534542,0.00020162,2]
[313261831,1707053578147,-3493.57161214,0.00020162,2]
[313261832,1707053578168,-323.81557453,0.00020163,2]
[313261833,1707053578189,-1582.87149968,0.00020163,2]
[313261834,1707053578209,-2174.11236073,0.00020163,2]
[313261838,1707053653095,-556.75044234,0.0002015,2]
[313261839,1707053653116,-264.24848499,0.00020151,2]
[313261840,1707053653136,-651.59002088,0.00020152,2]
[313261841,1707053653157,-4877.28,0.00020153,3]
[313261842,1707053653178,-4064.4,0.00020153,3]
[313261843,1707053653199,-3569.25,0.00020153,3]
[313261844,1707053653222,-1245.08019096,0.00020156,2]
[313261845,1707053653242,-322.14005268,0.00020157,2]
[313261846,1707053653262,-2605.0,0.00020157,2]
[313261847,1707053653282,-1017.67059015,0.00020158,2]
[313261848,1707053653302,-1692.83428093,0.00020162,2]
[313261849,1707053653321,-10316.20148278,0.00020163,2]
[313261850,1707053653341,-1012.7997081,0.00020163,2]
[313261851,1707053653361,-144306.75474619,0.00020163,2]
[313261853,1707053675575,19124.88822616,0.00019959,2]
[313261854,1707053703738,1651.61524348,0.00019959,2]
[313261855,1707053705455,1111.94749923,0.00019959,2]
[313261856,1707053710118,10316.20148278,0.00019959,2]
[313261857,1707053713324,622.14267495,0.00019959,2]
[313261858,1707053714981,155.00155002,0.00019959,2]
[313261860,1707053718871,24900.0,0.00019159,2]
[313261861,1707053721464,1111.94749923,0.00019959,2]
[313261862,1707053723612,1651.61524348,0.00019959,2]
[313261864,1707053727194,39008.47508222,0.00019959,2]
[313261865,1707053727219,104405.14338188,0.00019959,2]
[313261866,1707053727241,66218.03590096,0.00019959,2]
[313261867,1707053727326,622.14267495,0.00019959,2]
[313261868,1707053730116,10316.20148278,0.00019959,2]
[313261870,1707053732845,155.74526226,0.00019959,2]
[313261871,1707053734301,-20917.8332955,0.0002006,2]
[313261872,1707053734322,-3493.57161214,0.00020061,2]
[313261873,1707053734342,-523.28534542,0.00020062,2]
[313261874,1707053734364,-165.32019845,0.00020063,2]
[313261875,1707053734384,-3425.98954849,0.00020161,2]
[313261876,1707053741633,1651.61524348,0.00019959,2]
[313261877,1707053745459,1110.83834793,0.00019959,2]
[313261878,1707053748290,10316.20148278,0.00019959,2]
[313261879,1707053749326,622.14267495,0.00019959,2]
[313261880,1707053761631,1235.36549691,0.00019959,2]
[313261881,1707053769323,622.14267495,0.00019959,2]
[313261882,1707053772107,10316.20148278,0.00019959,2]
[313261884,1707053789329,622.14267495,0.00019959,2]
[313261886,1707053796122,10316.20148278,0.00019959,2]
[313261887,1707053801024,-260.89555211,0.0002016,2]
[313261888,1707053801046,-16497.44111273,0.00020161,2]
[313261889,1707053801067,-323.3370257,0.00020162,2]
[313261890,1707053801087,-264.24848499,0.00020162,2]
[313261891,1707053801107,-181.34031332,0.00020162,2]
[313261892,1707053801235,-2605.0,0.00020162,2]
[313261893,1707053801256,-239.83868588,0.00020162,2]
[313261894,1707053801276,-555.96965783,0.00020162,2]
[313261895,1707053801296,-487.92916744,0.00020162,2]
[313261896,1707053809326,232.68644846,0.00019959,2]
[313261898,1707053812111,10316.20148278,0.00019959,2]
[313261899,1707053871867,-1269.76151482,0.00020159,2]
[313261900,1707053871887,-294.34441752,0.0002016,2]
[313261901,1707053871907,-323.81557453,0.00020161,2]
[313261902,1707053871929,-380.18424373,0.00020162,2]
[313261903,1707053871950,-2884.8942494,0.00020162,2]
[313261906,1707053892688,10316.20148278,0.00019959,2]